bitfinex/quotes_BTCUSD_20250607
["timestamp","ask_amount","ask_price","bid_price","bid_amount"]
[1749296638167,1.37576131,105320.0,105310.0,0.62693116]
[1749296638168,0.59870144,105320.0,105310.0,0.62693116]
[1749296638314,0.7980926,105320.0,105310.0,0.63642675]
[1749296638519,0.79809251,105320.0,105310.0,0.64592225]
[1749296638947,0.78859818,105320.0,105310.0,0.64592225]
[1749296639171,0.22572674,105320.0,105310.0,0.64592225]
[1749296639372,0.04732622,105320.0,105310.0,0.79331228]
[1749296639575,0.02952299,105320.0,105310.0,0.79331228]
[1749296640097,0.02952299,105320.0,105310.0,0.83130193]
[1749296640098,0.60188869,105320.0,105310.0,0.83130193]
[1749296640312,0.01884396,105320.0,105310.0,0.83130193]
[1749296640522,0.04732695,105320.0,105310.0,0.83130193]
[1749296641331,0.02952299,105320.0,105310.0,0.83130193]
[1749296641607,0.05682147,105320.0,105310.0,0.83130193]
[1749296641789,0.04732909,105320.0,105310.0,0.83130193]
[1749296642514,0.05682378,105320.0,105310.0,0.83130193]
[1749296643199,0.03901768,105320.0,105310.0,0.83130193]
[1749296643409,0.05682378,105320.0,105310.0,0.83130193]
[1749296643815,0.02952299,105320.0,105310.0,0.83130193]
[1749296644457,0.03901768,105320.0,105310.0,0.83130193]
[1749296645312,0.03901768,105320.0,105310.0,0.79331228]
[1749296645523,0.58408473,105320.0,105310.0,0.77691228]
[1749296645749,0.60187807,105320.0,105310.0,0.77691228]
[1749296646174,0.58408473,105320.0,105310.0,0.77691228]
[1749296646394,0.57459004,105320.0,105310.0,0.77691228]
[1749296646602,0.58408473,105320.0,105310.0,0.77691228]
[1749296650268,0.58136473,105320.0,105310.0,0.77691228]
[1749296650503,0.59085951,105320.0,105310.0,0.77691228]
[1749296650713,0.58136473,105320.0,105310.0,0.77691228]
[1749296651630,0.57187004,105320.0,105310.0,0.77691228]
[1749296651823,0.58136473,105320.0,105310.0,0.77691228]
[1749296652362,0.58136473,105320.0,105310.0,1.02323228]
[1749296654556,0.03629768,105320.0,105310.0,1.02323228]
[1749296654982,0.58136473,105320.0,105310.0,1.02323228]
[1749296655740,0.60725951,105320.0,105310.0,1.00763228]
[1749296656290,0.60726032,105320.0,105310.0,0.99813714]
[1749296656588,0.60726032,105320.0,105310.0,1.00763246]
[1749296657305,0.79715777,105320.0,105310.0,1.00763246]
[1749296657477,0.78934344,105320.0,105310.0,1.00763246]
[1749296658427,0.78813617,105320.0,105310.0,0.48103948]
[1749296658638,1.33320322,105320.0,105310.0,0.96953064]
[1749296658851,1.32370935,105320.0,105310.0,0.77011948]
[1749296658987,1.30592642,105320.0,105310.0,0.77011948]
[1749296659202,1.32370942,105320.0,105310.0,0.96953073]
[1749296659423,1.32370946,105320.0,105310.0,0.97902623]
[1749296659637,1.34020946,105320.0,105310.0,0.98852164]
[1749296660064,1.34020946,105320.0,105310.0,0.96953055]
[1749296660262,0.77735937,105320.0,105310.0,0.96953055]
[1749296660483,0.79514522,105320.0,105310.0,0.96953055]
[1749296660736,1.34021227,105320.0,105310.0,0.96953055]
[1749296660937,1.32242642,105320.0,105310.0,0.96953055]
[1749296661142,1.34021227,105320.0,105310.0,0.96953055]
[1749296661508,1.34021223,105320.0,105310.0,0.97902596]
[1749296661831,0.79514518,105320.0,105310.0,0.77011948]
[1749296662015,0.79514731,105320.0,105310.0,0.77011948]
[1749296662700,0.77735937,105320.0,105310.0,0.77011948]
[1749296662919,0.79514731,105320.0,105310.0,0.77011948]
[1749296663079,0.7951488,105320.0,105310.0,0.77011948]
[1749296664788,0.7951488,105320.0,105310.0,0.39271948]
[1749296664990,1.34021585,105320.0,105310.0,0.76999948]
[1749296665246,1.34021971,105320.0,105310.0,0.39271948]
[1749296665368,1.34021971,105320.0,105310.0,0.76999948]
[1749296666037,1.32242642,105320.0,105310.0,0.76999948]
[1749296666454,1.34022086,105320.0,105310.0,0.76999948]
[1749296667988,0.77735937,105320.0,105310.0,0.76999948]
[1749296668421,0.79516075,105320.0,105310.0,0.76999948]
[1749296669305,0.79516363,105320.0,105310.0,0.52367948]
[1749296669747,0.77735937,105320.0,105310.0,0.52367948]
[1749296669951,1.32242642,105320.0,105310.0,0.52367948]
[1749296670359,1.34023072,105320.0,105310.0,0.52367948]
[1749296670695,1.34022991,105320.0,105310.0,0.52367948]
[1749296671081,1.34022991,105320.0,105310.0,0.05]
[1749296671332,1.32242642,105320.0,105310.0,0.42728]
[1749296671541,1.34022991,105320.0,105310.0,0.42728]
[1749296672961,1.34022953,105320.0,105310.0,0.42728]
[1749296673369,1.34022954,105320.0,105310.0,0.42728]
[1749296673603,1.34022953,105320.0,105310.0,0.42728]
[1749296674224,1.34022947,105320.0,105310.0,0.42728]
[1749296674566,1.32242642,105320.0,105310.0,0.42728]
[1749296674810,1.34022947,105320.0,105310.0,0.42728]
[1749296676412,1.32242642,105320.0,105310.0,0.42728]
[1749296676614,1.34022998,105320.0,105310.0,0.42728]
[1749296677664,1.32242642,105320.0,105310.0,0.42728]
[1749296678244,1.34023007,105320.0,105310.0,0.42728]
[1749296679150,1.32242642,105320.0,105310.0,0.42728]
[1749296679353,1.34023088,105320.0,105310.0,0.42728]
[1749296679508,1.34023096,105320.0,105310.0,0.42728]
[1749296679713,1.34023094,105320.0,105310.0,0.42728]
[1749296680929,1.32242642,105320.0,105310.0,0.42728]
[1749296681786,1.34023105,105320.0,105310.0,0.42728]
[1749296682851,1.34023259,105320.0,105310.0,0.42728]
[1749296683300,1.32242642,105320.0,105310.0,0.42728]
[1749296683511,1.34023259,105320.0,105310.0,0.42728]
[1749296684376,1.32242642,105320.0,105310.0,0.42728]
[1749296684577,1.34023259,105320.0,105310.0,0.42728]
[1749296684815,1.32242642,105320.0,105310.0,0.42728]
[1749296684985,1.34023265,105320.0,105310.0,0.42728]
[1749296685806,1.34023278,105320.0,105310.0,0.42728]
[1749296686007,0.01780636,105320.0,105310.0,1.40934611]
[1749296686238,0.26093252,105340.0,105330.0,0.19937321]
[1749296686404,0.26093178,105340.0,105330.0,0.39957269]
[1749296686626,0.79661166,105340.0,105330.0,0.69093287]
[1749296686872,0.77880719,105340.0,105330.0,0.68482675]
[1749296687086,0.78711886,105340.0,105330.0,0.47595948]
[1749296687303,0.77762621,105340.0,105330.0,0.48545345]
[1749296687515,1.32269326,105340.0,105330.0,0.47595948]
[1749296687719,1.3227004,105340.0,105330.0,0.47595948]
[1749296688153,1.30488857,105340.0,105330.0,0.47595948]
[1749296688599,1.3227005,105340.0,105330.0,0.47607948]
[1749296689015,1.3237005,105340.0,105330.0,0.47607948]
[1749296689211,1.30588857,105340.0,105330.0,0.47607948]
[1749296689442,1.32367322,105340.0,105330.0,0.47607948]
[1749296689643,0.77860617,105340.0,105330.0,0.47607948]
[1749296689829,0.77860466,105340.0,105330.0,0.47607948]
[1749296690439,1.32367175,105340.0,105330.0,0.47607948]
[1749296690660,1.33937175,105340.0,105330.0,0.47607948]
[1749296691507,1.33936644,105340.0,105330.0,0.47607948]
[1749296691912,0.2152733,105330.0,105310.0,0.82657767]
[1749296692117,0.01898857,105320.0,105310.0,0.85506363]
[1749296692342,0.01898857,105320.0,105310.0,1.33094311]
[1749296692551,0.02848317,105320.0,105310.0,1.33094311]
[1749296692937,0.02848317,105320.0,105310.0,0.78587606]
[1749296693131,0.02848317,105320.0,105310.0,0.78687606]
[1749296693337,0.02848308,105320.0,105310.0,0.78687606]
[1749296693618,0.02848308,105320.0,105310.0,0.78787606]
[1749296693862,0.02848308,105320.0,105310.0,0.79087606]
[1749296694066,0.01898857,105320.0,105310.0,0.79087606]
[1749296694933,0.02848317,105320.0,105310.0,0.79087606]
[1749296695939,0.0284829,105320.0,105310.0,1.33594311]
[1749296696403,0.0284829,105320.0,105310.0,0.79087606]
[1749296699444,0.03797759,105320.0,105310.0,0.79087606]
[1749296700133,0.0284829,105320.0,105310.0,0.79087606]
[1749296700447,0.04747219,105320.0,105310.0,0.79087606]
[1749296700970,0.04747219,105320.0,105310.0,0.77487606]
[1749296701897,0.04747219,105320.0,105310.0,1.31994311]
[1749296702303,0.04747219,105320.0,105310.0,0.94046311]
[1749296702504,0.0379775,105320.0,105310.0,1.31954311]
[1749296703023,0.77294263,105320.0,105310.0,0.36691055]
[1749296703226,0.01898911,105320.0,105310.0,0.77447651]
[1749296703451,0.02848389,105320.0,105310.0,0.76498137]
[1749296703634,0.02848389,105320.0,105310.0,0.77447651]
[1749296703861,0.0284838,105320.0,105310.0,0.77447651]
[1749296705138,0.0445838,105320.0,105310.0,0.77447651]
[1749296706093,0.0445838,105320.0,105310.0,0.75849651]
[1749296706346,0.05407858,105320.0,105310.0,0.75849651]
[1749296707202,0.0445838,105320.0,105310.0,0.77409651]
[1749296708711,0.0445838,105320.0,105310.0,0.75849651]
[1749296708941,0.05407858,105320.0,105310.0,0.75849651]
[1749296709151,0.0445838,105320.0,105310.0,0.75849651]
[1749296709363,0.0445838,105320.0,105310.0,0.77419651]
[1749296710400,0.0284838,105320.0,105310.0,1.31926356]
[1749296711020,0.0284838,105320.0,105310.0,0.77419651]
[1749296712730,0.01898911,105320.0,105310.0,0.77419651]
[1749296712936,0.02848335,105320.0,105310.0,0.77419651]
[1749296713156,0.03797804,105320.0,105310.0,0.77419651]
[1749296714639,0.03797804,105320.0,105310.0,1.02051651]
[1749296714838,0.03797804,105320.0,105310.0,1.41744596]
[1749296715249,0.03797804,105320.0,105310.0,1.47436215]
[1749296715477,0.02848335,105320.0,105310.0,1.47436215]
[1749296716506,0.03797804,105320.0,105310.0,1.47436215]
[1749296717132,0.02848335,105320.0,105310.0,1.47436215]
[1749296717272,0.01898875,105320.0,105310.0,1.47244215]
[1749296718035,0.00949424,105320.0,105310.0,1.47244215]
[1749296718162,0.01898875,105320.0,105310.0,1.47244215]
[1749296719339,0.02848344,105320.0,105310.0,1.47244215]
[1749296719945,0.02848344,105320.0,105310.0,1.0755127]
[1749296720153,0.01898875,105320.0,105310.0,1.0755127]
[1749296720372,0.02848344,105320.0,105310.0,1.0755127]
[1749296720577,0.04378344,105320.0,105310.0,1.0755127]
[1749296723102,0.04378344,105320.0,105310.0,1.0598127]
[1749296726660,0.05327831,105320.0,105310.0,1.0598127]
[1749296727221,0.04378344,105320.0,105310.0,1.0598127]
[1749296734524,0.05327822,105320.0,105310.0,1.0598127]
[1749296737327,0.65452853,105320.0,105310.0,0.45271567]
[1749296737533,0.65452853,105320.0,105310.0,0.48495948]
[1749296737534,1.05145897,105320.0,105310.0,0.48495948]
[1749296737730,1.03364582,105320.0,105310.0,0.77507948]
[1749296738167,0.6545307,105320.0,105310.0,0.77507948]
[1749296738567,0.6545307,105320.0,105310.0,0.77007948]
[1749296738911,1.05146015,105320.0,105310.0,0.2944]
[1749296739130,1.05146015,105320.0,105310.0,0.67472]
[1749296739344,1.03364582,105320.0,105310.0,0.67472]
[1749296739548,1.05144633,105320.0,105310.0,0.2954]
[1749296739753,1.05144633,105320.0,105310.0,0.67472]
[1749296739963,1.05144635,105320.0,105310.0,0.67472]
[1749296740849,1.03364582,105320.0,105310.0,0.67472]
[1749296741286,1.05143589,105320.0,105310.0,0.67472]
[1749296742602,1.0514348,105320.0,105310.0,0.67472]
[1749296743071,1.05142806,105320.0,105310.0,0.67472]
[1749296743613,1.03364582,105320.0,105310.0,0.67472]
[1749296743815,1.05142806,105320.0,105310.0,0.67472]
[1749296744572,1.03364582,105320.0,105310.0,0.67472]
[1749296744879,1.05142683,105320.0,105310.0,0.67472]
[1749296745283,1.03364582,105320.0,105310.0,0.67472]
[1749296745490,1.05142683,105320.0,105310.0,0.67472]
[1749296746549,1.03364582,105320.0,105310.0,0.67472]
[1749296746766,1.05142683,105320.0,105310.0,0.67472]
[1749296746997,1.03364582,105320.0,105310.0,0.67472]
[1749296747405,1.05142683,105320.0,105310.0,0.67472]
[1749296750188,1.0514203,105320.0,105310.0,0.67472]
[1749296750383,1.03364582,105320.0,105310.0,0.67472]
[1749296750600,1.0514203,105320.0,105310.0,0.67472]
[1749296751222,1.03364582,105320.0,105310.0,0.67472]
[1749296751427,1.0514203,105320.0,105310.0,0.67472]
[1749296752014,1.03364582,105320.0,105310.0,0.67472]
[1749296752229,1.05141903,105320.0,105310.0,0.67472]
[1749296752634,1.03364582,105320.0,105310.0,0.67472]
[1749296752828,1.05141903,105320.0,105310.0,0.67472]
[1749296753614,1.03364582,105320.0,105310.0,0.67472]
[1749296753823,1.05141903,105320.0,105310.0,0.67472]
[1749296754207,1.03364582,105320.0,105310.0,0.67472]
[1749296754569,1.05141903,105320.0,105310.0,0.67472]
[1749296754772,1.03364582,105320.0,105310.0,0.67472]
[1749296754983,1.05141903,105320.0,105310.0,0.67472]
[1749296755321,1.03364582,105320.0,105310.0,0.67472]
[1749296755520,1.05141903,105320.0,105310.0,0.67472]
[1749296756158,1.03364582,105320.0,105310.0,0.67472]
[1749296756856,1.051418,105320.0,105310.0,0.67472]
[1749296757213,1.03364582,105320.0,105310.0,0.67472]
[1749296757371,1.051418,105320.0,105310.0,0.67472]
[1749296757574,1.03364582,105320.0,105310.0,0.67472]
[1749296758289,1.051418,105320.0,105310.0,0.67472]
[1749296759370,1.03364582,105320.0,105310.0,0.67472]
[1749296759742,1.05141691,105320.0,105310.0,0.67472]
[1749296761418,1.03364582,105320.0,105310.0,0.67472]
[1749296761762,1.0514176,105320.0,105310.0,0.67472]
[1749296763248,1.03364582,105320.0,105310.0,0.67472]
[1749296763454,1.05142005,105320.0,105310.0,0.67472]
[1749296764296,1.05142005,105320.0,105310.0,0.38456]
[1749296764491,1.05142005,105320.0,105310.0,0.67448]
[1749296764669,1.05142165,105320.0,105310.0,0.67448]
[1749296764875,1.0514217,105320.0,105310.0,0.67448]
[1749296765116,1.03364582,105320.0,105310.0,0.67448]
[1749296765337,1.05142892,105320.0,105310.0,0.67448]
[1749296766814,1.03364582,105320.0,105310.0,0.67448]
[1749296767017,1.05143023,105320.0,105310.0,0.67448]
[1749296767221,1.05145236,105320.0,105310.0,0.67448]
[1749296768307,1.03364582,105320.0,105310.0,0.67448]
[1749296768514,1.05644984,105320.0,105310.0,0.67448]
[1749296768895,1.05644984,105320.0,105310.0,0.67424]
[1749296769095,1.07426542,105320.0,105310.0,0.68314391]
[1749296769257,1.07426547,105320.0,105310.0,0.68314391]
[1749296769441,1.07426547,105320.0,105310.0,0.67424]
[1749296769840,1.07426547,105320.0,105310.0,0.2954]
[1749296770107,1.05744984,105320.0,105310.0,0.67432]
[1749296770420,1.41525587,105320.0,105310.0,0.3832]
[1749296770635,1.39744984,105320.0,105310.0,0.67332]
[1749296770854,1.41525604,105320.0,105310.0,0.67332]
[1749296771056,1.41525607,105320.0,105310.0,0.67332]
[1749296772001,1.39744984,105320.0,105310.0,0.67332]
[1749296772385,1.42617942,105320.0,105310.0,0.67332]
[1749296772605,1.44398565,105320.0,105310.0,0.427]
[1749296772816,1.44398457,105320.0,105310.0,0.427]
[1749296773269,1.44397912,105320.0,105310.0,0.427]
[1749296773702,1.42617942,105320.0,105310.0,0.427]
[1749296774040,1.44397912,105320.0,105310.0,0.427]
[1749296774866,1.44397911,105320.0,105310.0,0.427]
[1749296775267,1.44397743,105320.0,105310.0,0.427]
[1749296775612,1.42617942,105320.0,105310.0,0.427]
[1749296776199,1.44397743,105320.0,105310.0,0.427]
[1749296776846,1.42617942,105320.0,105310.0,0.427]
[1749296777206,1.44397743,105320.0,105310.0,0.427]
[1749296777592,1.42615877,105320.0,105310.0,0.427]
[1749296777727,1.44395678,105320.0,105310.0,0.427]
[1749296778949,1.42615877,105320.0,105310.0,0.427]
[1749296779461,1.44395643,105320.0,105310.0,0.427]
[1749296780709,1.42615877,105320.0,105310.0,0.427]
[1749296780900,1.44395713,105320.0,105310.0,0.427]
[1749296781237,0.65009823,105320.0,105310.0,0.427]
[1749296781443,1.44395687,105320.0,105310.0,0.427]
[1749296781658,1.4439567,105320.0,105310.0,0.427]
[1749296782318,1.44395667,105320.0,105310.0,0.427]
[1749296782528,1.44395669,105320.0,105310.0,0.427]
[1749296782750,1.42615877,105320.0,105310.0,0.427]
[1749296783173,1.44395672,105320.0,105310.0,0.427]
[1749296784059,1.44395672,105320.0,105310.0,0.4246]
[1749296784565,1.42615877,105320.0,105310.0,0.4246]
[1749296785366,1.44395817,105320.0,105310.0,0.4246]
[1749296786190,1.42615877,105320.0,105310.0,0.4246]
[1749296786594,1.44395817,105320.0,105310.0,0.4246]
[1749296786805,0.65009927,105320.0,105310.0,0.4246]
[1749296787018,1.44395817,105320.0,105310.0,0.4246]
[1749296787268,0.98739914,105320.0,105310.0,0.4246]
[1749296787479,0.94681637,105320.0,105310.0,0.4404]
[1749296787686,0.96461473,105320.0,105310.0,0.4404]
[1749296788501,0.96461405,105320.0,105310.0,0.4404]
[1749296788714,0.03778813,105320.0,105310.0,0.76080587]
[1749296788921,0.23717945,105320.0,105310.0,0.76080587]
[1749296789127,0.21938179,105320.0,105310.0,0.76080587]
[1749296789332,0.23717924,105320.0,105310.0,0.76080587]
[1749296789538,0.63410869,105320.0,105310.0,0.75131055]
[1749296789921,0.624614,105320.0,105310.0,0.75131055]
[1749296790130,0.61511922,105320.0,105310.0,0.75131055]
[1749296790661,0.61510987,105320.0,105310.0,0.75131055]
[1749296790820,0.61510986,105320.0,105310.0,0.75131055]
[1749296791848,0.61510574,105320.0,105310.0,0.75131055]
[1749296792340,0.59732177,105320.0,105310.0,0.75131055]
[1749296792543,0.61510574,105320.0,105310.0,0.75131055]
[1749296793899,0.59732177,105320.0,105310.0,0.75131055]
[1749296794115,0.61510171,105320.0,105310.0,0.75131055]
[1749296794959,0.60560684,105320.0,105310.0,0.74181496]
[1749296795174,0.60560684,105320.0,105310.0,0.76080641]
[1749296795801,0.60560578,105320.0,105310.0,0.76080641]
[1749296796837,0.60560578,105320.0,105310.0,0.74570641]
[1749296797270,0.60560347,105320.0,105310.0,0.74570641]
[1749296797864,0.5878269,105320.0,105310.0,0.74570641]
[1749296798081,0.60560347,105320.0,105310.0,0.74570641]
[1749296798294,0.60560347,105320.0,105310.0,0.15787948]
[1749296798295,0.98475635,105320.0,105310.0,0.15787948]
[1749296798562,1.01783355,105320.0,105310.0,0.52051948]
[1749296798757,1.01783374,105320.0,105310.0,0.14207948]
[1749296798975,1.01783374,105320.0,105310.0,0.52055948]
[1749296799659,1.00005635,105320.0,105310.0,0.52055948]
[1749296799910,1.01783328,105320.0,105310.0,0.52055948]
[1749296800118,1.00005635,105320.0,105310.0,0.52055948]
[1749296800331,1.01783332,105320.0,105310.0,0.52055948]
[1749296800545,1.00005635,105320.0,105310.0,0.52055948]
[1749296800756,1.01783329,105320.0,105310.0,0.53005525]
[1749296800969,1.0178333,105320.0,105310.0,0.53005525]
[1749296801174,1.00005635,105320.0,105310.0,0.53005525]
[1749296801409,1.01783328,105320.0,105310.0,0.53005525]
[1749296801619,1.00005635,105320.0,105310.0,0.52055948]
[1749296801836,1.0178332,105320.0,105310.0,0.52055948]
[1749296802048,1.00005635,105320.0,105310.0,0.52055948]
[1749296802268,1.01783322,105320.0,105310.0,0.52055948]
[1749296802488,1.00005635,105320.0,105310.0,0.52055948]
[1749296803820,1.01783493,105320.0,105310.0,0.52055948]
[1749296804876,1.00005635,105320.0,105310.0,0.52055948]
[1749296805113,1.01783492,105320.0,105310.0,0.52055948]
[1749296805458,1.01783838,105320.0,105310.0,0.52055948]
[1749296806534,1.01783844,105320.0,105310.0,0.42416]
[1749296807164,1.01783849,105320.0,105310.0,0.42416]
[1749296809761,1.00005635,105320.0,105310.0,0.42416]
[1749296809984,1.01784088,105320.0,105310.0,0.42416]
[1749296810189,1.00005635,105320.0,105310.0,0.42416]
[1749296810398,1.01784724,105320.0,105310.0,0.42416]
[1749296810601,1.00005635,105320.0,105310.0,0.42416]
[1749296811017,1.01784724,105320.0,105310.0,0.42416]
[1749296811466,1.01784894,105320.0,105310.0,0.42416]
[1749296811671,1.00005635,105320.0,105310.0,0.42416]
[1749296811903,1.01784894,105320.0,105310.0,0.42416]
[1749296813650,1.00005635,105320.0,105310.0,0.42416]
[1749296814026,1.01785862,105320.0,105310.0,0.42416]
[1749296814435,1.00005635,105320.0,105310.0,0.42416]
[1749296815377,1.01785862,105320.0,105310.0,0.42416]
[1749296816503,1.01505635,105320.0,105310.0,0.42416]
[1749296816691,1.01785894,105320.0,105310.0,0.42416]
[1749296816849,1.01505635,105320.0,105310.0,0.42416]
[1749296817059,1.03285894,105320.0,105310.0,0.42416]
[1749296817258,1.01505635,105320.0,105310.0,0.42416]
[1749296817478,1.03285894,105320.0,105310.0,0.42416]
[1749296817723,1.03285894,105320.0,105310.0,0.4234]
[1749296817863,1.03285894,105320.0,105310.0,0.04568]
[1749296818059,1.03285894,105320.0,105310.0,0.4234]
[1749296818299,1.03285907,105320.0,105310.0,0.4234]
[1749296818503,1.03285934,105320.0,105310.0,0.4234]
[1749296818684,1.03285964,105320.0,105310.0,0.4234]
[1749296820082,1.03285941,105320.0,105310.0,0.4234]
[1749296821395,1.03285964,105320.0,105310.0,0.4234]
[1749296821594,1.01785964,105320.0,105310.0,0.4234]
[1749296821794,1.00005635,105320.0,105310.0,0.4234]
[1749296822224,1.01785975,105320.0,105310.0,0.4234]
[1749296822431,1.00005635,105320.0,105310.0,0.4234]
[1749296822627,1.01785975,105320.0,105310.0,0.4234]
[1749296822865,0.20619745,105320.0,105310.0,0.4234]
[1749296823018,1.01785975,105320.0,105310.0,0.4234]
[1749296823817,1.00005635,105320.0,105310.0,0.4234]
[1749296824415,1.03406079,105320.0,105310.0,0.4234]
[1749296825367,1.03406378,105320.0,105310.0,0.4234]
[1749296825694,1.01625635,105320.0,105310.0,0.4234]
[1749296825936,1.03406377,105320.0,105310.0,0.4234]
[1749296826123,1.01625635,105320.0,105310.0,0.4234]
[1749296826336,1.03406378,105320.0,105310.0,0.4234]
[1749296827169,1.03407134,105320.0,105310.0,0.4234]
[1749296827380,1.01625635,105320.0,105310.0,0.4234]
[1749296827790,1.03407136,105320.0,105310.0,0.4234]
[1749296828043,1.01625635,105320.0,105310.0,0.4234]
[1749296828247,1.03407136,105320.0,105310.0,0.4234]
[1749296828967,1.01625635,105320.0,105310.0,0.4234]
[1749296829580,1.03407152,105320.0,105310.0,0.4234]
[1749296829985,0.63714207,105320.0,105310.0,0.4234]
[1749296830614,0.63714146,105320.0,105310.0,0.4234]
[1749296830810,0.6193269,105320.0,105310.0,0.4234]
[1749296831013,0.63714139,105320.0,105310.0,0.4234]
[1749296831155,0.6193269,105320.0,105310.0,0.4234]
[1749296831492,0.63714137,105320.0,105310.0,0.4234]
[1749296831691,0.63714136,105320.0,105310.0,0.4234]
[1749296831901,0.62094136,105320.0,105310.0,0.4234]
[1749296832954,0.6031269,105320.0,105310.0,0.4234]
[1749296833159,0.62093946,105320.0,105310.0,0.4234]
[1749296833357,0.6031269,105320.0,105310.0,0.4234]
[1749296833569,0.62093934,105320.0,105310.0,0.4234]
[1749296834171,0.62093993,105320.0,105310.0,0.4234]
[1749296835086,0.6031269,105320.0,105310.0,0.4234]
[1749296835304,0.62093993,105320.0,105310.0,0.4234]
[1749296836849,0.6031269,105320.0,105310.0,0.4234]
[1749296837055,1.03376938,105320.0,105310.0,0.4234]
[1749296838330,1.03376961,105320.0,105310.0,0.4234]
[1749296838535,1.01595635,105320.0,105310.0,0.4234]
[1749296838734,1.03376982,105320.0,105310.0,0.4234]
[1749296839357,1.01595635,105320.0,105310.0,0.4234]
[1749296839802,1.03376982,105320.0,105310.0,0.4234]
[1749296840034,1.35595635,105320.0,105310.0,0.4234]
[1749296840286,1.3965724,105320.0,105310.0,0.4234]
[1749296840518,1.37875802,105320.0,105310.0,0.4234]
[1749296840722,1.37875612,105320.0,105310.0,0.4234]
[1749296841355,1.37875612,105320.0,105310.0,0.04568]
[1749296841356,1.39657072,105320.0,105310.0,0.04568]
[1749296841579,1.37875612,105320.0,105310.0,0.42324]
[1749296841787,1.39657093,105320.0,105310.0,0.42324]
[1749296842408,1.37875612,105320.0,105310.0,0.42324]
[1749296842616,1.39657096,105320.0,105310.0,0.42324]
[1749296842818,1.37875612,105320.0,105310.0,0.42324]
[1749296843032,1.39657095,105320.0,105310.0,0.42324]
[1749296843477,1.39657096,105320.0,105310.0,0.42324]
[1749296844154,1.37875612,105320.0,105310.0,0.42324]
[1749296844989,1.39657096,105320.0,105310.0,0.42324]
[1749296845826,1.39657096,105320.0,105310.0,0.43214229]
[1749296846038,1.37875612,105320.0,105310.0,0.43214229]
[1749296846181,1.39656297,105320.0,105310.0,0.43214229]
[1749296846592,1.37875612,105320.0,105310.0,0.42324]
[1749296846767,1.39656296,105320.0,105310.0,0.43214229]
[1749296846969,1.39656296,105320.0,105310.0,0.42324]
[1749296847779,1.37875612,105320.0,105310.0,0.42324]
[1749296847995,1.39655798,105320.0,105310.0,0.42324]
[1749296848203,1.37875612,105320.0,105310.0,0.42324]
[1749296848612,1.39655821,105320.0,105310.0,0.42324]
[1749296849896,1.37875612,105320.0,105310.0,0.42324]
[1749296850065,1.39655382,105320.0,105310.0,0.42324]
[1749296851224,1.39655382,105320.0,105310.0,0.42208]
[1749296851779,1.37875612,105320.0,105310.0,0.42208]
[1749296851987,1.39655107,105320.0,105310.0,0.42208]
[1749296852187,1.37875612,105320.0,105310.0,0.42208]
[1749296852389,1.39655107,105320.0,105310.0,0.42208]
[1749296853405,1.37875612,105320.0,105310.0,0.42208]
[1749296853649,1.39655107,105320.0,105310.0,0.42208]
[1749296854712,1.37875612,105320.0,105310.0,0.42208]
[1749296855341,1.39655003,105320.0,105310.0,0.42208]
[1749296855566,1.39655003,105320.0,105310.0,0.13284]
[1749296855771,1.39655003,105320.0,105310.0,0.42208]
[1749296855987,1.37875612,105320.0,105310.0,0.42208]
[1749296856192,1.39655003,105320.0,105310.0,0.42208]
[1749296857466,1.42562172,105320.0,105310.0,0.42208]
[1749296857668,1.42562023,105320.0,105310.0,0.42208]
[1749296858128,1.40782781,105320.0,105310.0,0.42208]
[1749296858566,1.42562024,105320.0,105310.0,0.42208]
[1749296858773,1.40782781,105320.0,105310.0,0.42208]
[1749296858973,1.42561831,105320.0,105310.0,0.04452]
[1749296859286,1.38502804,105320.0,105310.0,0.42208]
[1749296859700,1.40281728,105320.0,105310.0,0.42208]
[1749296860106,1.42559139,105320.0,105310.0,0.42208]
[1749296860834,1.42559195,105320.0,105310.0,0.42208]
[1749296861343,1.40780215,105320.0,105310.0,0.42208]
[1749296861701,1.42559192,105320.0,105310.0,0.42208]
[1749296862685,1.42559517,105320.0,105310.0,0.42208]
[1749296862891,1.40780215,105320.0,105310.0,0.42208]
[1749296863047,1.42559517,105320.0,105310.0,0.42208]
[1749296863294,1.40780215,105320.0,105310.0,0.42208]
[1749296863665,1.42559517,105320.0,105310.0,0.42208]
[1749296864082,1.42560094,105320.0,105310.0,0.42208]
[1749296864495,1.40780215,105320.0,105310.0,0.42208]
[1749296865001,1.42560095,105320.0,105310.0,0.42208]
[1749296865424,1.40780215,105320.0,105310.0,0.42208]
[1749296865622,1.42560094,105320.0,105310.0,0.42208]
[1749296866078,1.39190215,105320.0,105310.0,0.42208]
[1749296866309,1.4097014,105320.0,105310.0,0.42208]
[1749296866526,1.39190215,105320.0,105310.0,0.42208]
[1749296866743,1.40970142,105320.0,105310.0,0.42208]
[1749296867015,1.40970084,105320.0,105310.0,0.42208]
[1749296867443,1.38692657,105320.0,105310.0,0.42208]
[1749296867871,1.36912804,105320.0,105310.0,0.42208]
[1749296868080,1.3869382,105320.0,105310.0,0.42208]
[1749296868329,1.39191452,105320.0,105310.0,0.42208]
[1749296868557,1.40972473,105320.0,105310.0,0.42208]
[1749296869000,1.40972474,105320.0,105310.0,0.42208]
[1749296869525,1.39191452,105320.0,105310.0,0.42208]
[1749296869976,1.40972474,105320.0,105310.0,0.42208]
[1749296871362,1.39191452,105320.0,105310.0,0.42208]
[1749296871819,1.40972353,105320.0,105310.0,0.42208]
[1749296872041,1.40972341,105320.0,105310.0,0.42208]
[1749296872267,1.40972343,105320.0,105310.0,0.42208]
[1749296872493,1.40972322,105320.0,105310.0,0.42208]
[1749296872933,1.40972324,105320.0,105310.0,0.42208]
[1749296873348,1.39191452,105320.0,105310.0,0.42208]
[1749296873590,1.40972324,105320.0,105310.0,0.42208]
[1749296874232,1.38693676,105320.0,105310.0,0.42208]
[1749296874916,1.3869367,105320.0,105310.0,0.42208]
[1749296875129,1.40973145,105320.0,105310.0,0.42208]
[1749296875352,1.40973073,105320.0,105310.0,0.42208]
[1749296875770,1.40970956,105320.0,105310.0,0.42208]
[1749296876482,1.40971167,105320.0,105310.0,0.42208]
[1749296876888,1.40971118,105320.0,105310.0,0.42208]
[1749296877096,1.39192279,105320.0,105310.0,0.42208]
[1749296877863,1.4097085,105320.0,105310.0,0.42208]
[1749296878691,1.40970875,105320.0,105310.0,0.42208]
[1749296879068,1.40970874,105320.0,105310.0,0.42208]
[1749296879268,1.39192279,105320.0,105310.0,0.42208]
[1749296879446,1.40970842,105320.0,105310.0,0.42208]
[1749296879899,1.34254198,105320.0,105310.0,0.43768]
[1749296880105,1.36530798,105320.0,105310.0,0.43768]